Cogmind - Beta 13 *** ADVENTURER MODE // 2024.04.02 @ 14:58:20 Player: sewer jenny Result: Destroyed by H-66 Slayer with Heavy Assault Rifle Performance ------------- Evolutions (5) 2500 Regions Visited (11) 2200 Robots Destroyed (14) 70 Value Destroyed (576) 576 Prototype IDs (3) 60 Alien Tech Used (0) 0 Bonus (1089) 1089 TOTAL SCORE: 6495 Bonus ------- Follower Combat Kills 489 Met Imprinter 300 Was Imprinted 300 Cogmind --------- Core Integrity 0/1000 Matter 113/300 Energy 100/100 System Corruption 10% Temperature Cool (0) Movement Core (100) Ox1 Location -5/Factory Parts ------- > --- POWER (2) -------- (None) > --- PROPULSION (5) --- (None) > --- UTILITY (7) ------ (None) > --- WEAPON (3) ------- Mini Assault Cannon > --- INVENTORY (5) ---- (None) Peak State ------------ > --- POWER ------------ Light Angular Momentum Engine Light Antimatter Reactor > --- PROPULSION ------- Armored Treads Advanced Treads Advanced Treads Advanced Treads > --- UTILITY ---------- Light Armor Plating Hacking Suite > --- WEAPON ----------- Heavy Laser Gauss Rifle > --- INVENTORY -------- (None) [Rating: 36] Favorites ----------- Power Ion Engine Engine Ion Engine Power Core Neutrino Core Reactor Light Antimatter Reactor Propulsion Advanced Treads Treads Advanced Treads Leg Aluminum Leg Utility Light Armor Plating Device Advanced Terrain Scanner Storage Medium Storage Unit Processor Advanced Terrain Scan Processor Hackware Hacking Suite Protection Light Armor Plating Weapon Field Laser Energy Gun Field Laser Energy Cannon Improved EM Pulse Cannon Ballistic Gun Coil Gun Ballistic Cannon Mini Assault Cannon Special Weapon Improved Remote Datajack Special Melee Weapon Datajack Build | -11 -10 -9 -9 -7 -6 -6 -6 -6 -5 -5 -5 ------- Run | Yrd Mat Mat Min Zio Pro Fac Low Low Fac Was Fac Slots Evolved 10 | . . 2 . . . 6 . . 2 . . Power 1 | . . . . . . 1 . . . . . Propulsion 3 | . . 1 . . . 2 . . . . . Utility 5 | . . . . . . 3 . . 2 . . Weapon 1 | . . 1 . . . . . . . . . Parts Attached 50 | 6 6 11 . 2 5 12 . . 4 3 1 Power 5 | 1 . . . 1 1 1 . . . . 1 Engine 3 | 1 . . . 1 . 1 . . . . . Core 1 | . . . . . . . . . . . 1 Reactor 1 | . . . . . 1 . . . . . . Propulsion 13 | 2 . 6 . . 1 3 . . . 1 . Treads 12 | 2 . 5 . . 1 3 . . . 1 . Leg 1 | . . 1 . . . . . . . . . Wheel . | . . . . . . . . . . . . Hover . | . . . . . . . . . . . . Flight . | . . . . . . . . . . . . Utility 11 | 1 2 2 . . 1 3 . . 1 1 . Device 4 | . . . . . . 2 . . 1 1 . Storage 3 | 1 1 1 . . . . . . . . . Processor 2 | . . 1 . . . 1 . . . . . Hackware 1 | . . . . . 1 . . . . . . Protection 1 | . 1 . . . . . . . . . . Artifact . | . . . . . . . . . . . . Weapon 21 | 2 4 3 . 1 2 5 . . 3 1 . Energy Gun 11 | 2 2 3 . 1 2 . . . 1 . . Energy Cannon 4 | . 1 . . . . 3 . . . . . Ballistic Gun 2 | . . . . . . 2 . . . . . Ballistic Cannon 1 | . . . . . . . . . . 1 . Launcher . | . . . . . . . . . . . . Special Weapon 2 | . . . . . . . . . 2 . . Impact Weapon . | . . . . . . . . . . . . Slashing Weapon . | . . . . . . . . . . . . Piercing Weapon . | . . . . . . . . . . . . Special Melee Weapon 1 | . 1 . . . . . . . . . . Unidentified Prototypes 3 | . 1 . . . . . . . 1 1 . Parts Lost 26 | . . . . . 1 16 2 . 2 2 3 Power 3 | . . . . . . 2 . . . . 1 Propulsion 7 | . . . . . . 6 . . . . 1 Utility 6 | . . . . . . 2 2 . . 1 1 Weapon 10 | . . . . . 1 6 . . 2 1 . Highest Loss Streak 9 | . . . . . 1 9 2 . 1 2 3 To Critical Strikes . | . . . . . . . . . . . . Average Slot Usage (%) 67 | . 86 94 100 97 82 36 6 6 22 10 16 Engine 5 | . 14 11 11 11 2 . . . . . . Reactor 1 | . . . . . 8 . . . . . . Treads 22 | . 28 29 33 33 33 10 . . . . 4 Device 1 | . . . . . . 6 . . 4 2 4 Storage 5 | . 9 11 11 11 5 . . . . . . Processor 1 | . . . . . . 2 6 6 5 3 . Hackware 1 | . . . . . 5 1 . . . . . Protection 6 | . 8 11 11 11 11 . . . . . . Energy Gun 16 | . 14 30 33 30 16 . . . 3 . . Energy Cannon 1 | . 5 . . . . 7 . . . . . Naked Turns 38 | . . . . . . . . . . 38 . Heaviest Build 33 | 14 24 27 27 27 33 28 2 . 11 5 18 Greatest Support 86 | 40 40 66 66 66 66 86 3 3 3 3 3 Greatest Overweight (x) 7 | . . 7 . . . 6 . . 3 1 5 Average Overweight (x) . | . . . . . . . . . 1 . 1 Largest Inventory Capacity 10 | 8 10 10 10 10 10 5 5 5 5 5 5 Average Capacity 7 | 7 8 9 10 10 7 5 5 5 5 5 5 Most Carried 5 | 4 5 4 1 2 5 3 . . 3 5 1 Average Carried 1 | 1 2 1 1 1 2 . . . 1 2 . Final Capacity 10 | 8 10 10 10 10 5 5 5 5 5 5 5 Final Carried 2 | 2 2 1 1 2 2 . . . 2 . . Class Distribution -------------------- 41% | Mutant 33% | Tank 13% | Hacker-Mutant 7% | Skirmisher Dominant Class ---------------- Mutant | -10/Materials Tank | -9/Materials Tank | -9/Mines Tank | -7/Zion Mutant | -6/Proximity Caves Skirmisher | -6/Factory Mutant | -6/Lower Caves Mutant | -6/Lower Caves Mutant | -5/Factory Mutant | -5/Waste Mutant | -5/Factory Resources | -11 -10 -9 -9 -7 -6 -6 -6 -6 -5 -5 -5 ----------- Run | Yrd Mat Mat Min Zio Pro Fac Low Low Fac Was Fac Matter Collected 638 | 175 137 118 . 65 50 91 . . . . 2 Remotely . | . . . . . . . . . . . . Salvage Created 531 | . 137 121 . . 99 148 . . . . 26 Parts 33 | . 9 6 . . 10 6 . . . . 2 Haulers Intercepted . | . . . . . . . . . . . . Recyclers Shooed . | . . . . . . . . . . . . Parts Field Recycled . | . . . . . . . . . . . . Retrieved Matter . | . . . . . . . . . . . . Parts Self-Destructed 15 | . . . . . 13 . 2 . . . . Prevented 9 | . . . . . 9 . . . . . . Kills | -11 -10 -9 -9 -7 -6 -6 -6 -6 -5 -5 -5 ------- Run | Yrd Mat Mat Min Zio Pro Fac Low Low Fac Was Fac Combat Hostiles Destroyed 14 | . 5 3 . . 2 3 . . . . 1 Guns 10 | . 3 3 . . 2 2 . . . . . Cannons 3 | . 2 . . . . . . . . . 1 Classes Destroyed 5 | . 2 . . . 2 1 . . . . . Swarmer 4 | . 3 . . . . 1 . . . . . Grunt 6 | . 2 3 . . . . . . . . 1 Sentry 1 | . . . . . . 1 . . . . . Hunter 2 | . . . . . 1 1 . . . . . Programmer 1 | . . . . . 1 . . . . . . Best Kill Streak 3 | . 3 2 . . 1 2 . . . . 1 Combat Bots Only 3 | . 3 2 . . 1 2 . . . . 1 Max Kills in Single Turn 1 | . 1 1 . . 1 1 . . . . 1 Gunslinging . | . . . . . . . . . . . . Exploded . | . . . . . . . . . . . . Melee . | . . . . . . . . . . . . Uniques/NPCs Destroyed . | . . . . . . . . . . . . Combat | -11 -10 -9 -9 -7 -6 -6 -6 -6 -5 -5 -5 -------- Run | Yrd Mat Mat Min Zio Pro Fac Low Low Fac Was Fac Hostile Shots Fired 655 | . 18 10 . . 26 417 30 . 32 4 118 Missed 238 | . 5 1 . . 11 170 11 . 12 1 27 Damage Taken 4551 | . 95 99 . . 135 2200 211 . 580 102 1129 Core 1581 | . . . . . 15 391 172 . 348 102 553 Absorbed by Shields . | . . . . . . . . . . . . Ignored by Resistances 1348 | . 29 28 . . 39 684 63 . 154 28 323 Regen/Repaired (Parts) 68 | . . . . 68 . . . . . . . Core Remaining (%) 82 | 100 100 . . . 96 . . 33 . . . Volleys Fired 63 | . 13 5 . 1 6 25 . . . . 13 Largest 3 | . 2 3 . 3 2 2 . . . . 1 Hottest 189 | . 121 189 . 189 149 97 . . . . 48 Shots Fired 90 | . 16 15 . 3 9 34 . . . . 13 Gun 70 | . 9 15 . 3 9 34 . . . . . Cannon 20 | . 7 . . . . . . . . . 13 Launcher . | . . . . . . . . . . . . Special . | . . . . . . . . . . . . Kinetic 35 | . . . . . . 22 . . . . 13 Thermal 55 | . 16 15 . 3 9 12 . . . . . Explosive . | . . . . . . . . . . . . Electromagnetic . | . . . . . . . . . . . . Robot Hit Streak 32 | . 5 4 . . 5 32 . . . . 10 Robot Miss Streak 3 | . 3 1 . . 2 1 . . . . 2 Penetration Max . | . . . . . . . . . . . . Secondary Targets 1 | . 1 . . . . . . . . . . Max Gunslinging Chain 1 | . 1 . . . . . . . . . . Shots Hit Robots 67 | . 10 8 . . 8 30 . . . . 11 Core Hits 32 | . 6 4 . . 5 12 . . . . 5 Critical Kills . | . . . . . . . . . . . . Critical Parts Destroyed 1 | . . . . . . 1 . . . . . Critical Strikes 4 | . 1 . . . . 1 . . . . 2 Burn 1 | . 1 . . . . . . . . . . Destroy 1 | . . . . . . 1 . . . . . Blast 2 | . . . . . . . . . . . 2 Melee Attacks . | . . . . . . . . . . . . Impact . | . . . . . . . . . . . . Slashing . | . . . . . . . . . . . . Piercing . | . . . . . . . . . . . . Sneak Attacks . | . . . . . . . . . . . . Combat Hostiles . | . . . . . . . . . . . . Follow-up Attacks . | . . . . . . . . . . . . Damage Inflicted 1424 | . 166 175 . . 148 631 12 . . . 292 Guns 994 | . 77 175 . . 148 594 . . . . . Cannons 377 | . 89 . . . . . . . . . 288 Explosions . | . . . . . . . . . . . . Melee . | . . . . . . . . . . . . Ramming 53 | . . . . . . 37 12 . . . 4 Kinetic 653 | . . . . . . 365 . . . . 288 Thermal 718 | . 166 175 . . 148 229 . . . . . Explosive . | . . . . . . . . . . . . Electromagnetic . | . . . . . . . . . . . . Impact . | . . . . . . . . . . . . Slashing . | . . . . . . . . . . . . Piercing . | . . . . . . . . . . . . Highest Corruption 10 | . . . . . . 3 3 3 . 10 10 Average Corruption 6 | . . . . . . 2 3 3 . 7 10 Corruption Purged . | . . . . . . . . . . . . Corruption Blocked . | . . . . . . . . . . . . Effects 21 | . . . . . . 2 2 . . 6 11 Message Errors 2 | . . . . . . . 1 . . . 1 Matter Fused 9 | . . . . . . 1 . . . 1 7 Heat Flow Errors 4 | . . . . . . . 1 . . 1 2 Energy Discharges 3 | . . . . . . 1 . . . 2 . Data Loss (minor) 2 | . . . . . . . . . . 1 1 Alerts 1 | . . . . . . . . . . 1 . Overload Shots . | . . . . . . . . . . . . Overflow Damage 8 | . . . . . . . 8 . . . . Projectiles . | . . . . . . . . . . . . Explosions . | . . . . . . . . . . . . Melee 8 | . . . . . . . 8 . . . . Knockbacks 4 | . . . . . . . . . . . 4 Impact . | . . . . . . . . . . . . Kinetic 3 | . . . . . . . . . . . 3 Secondary 1 | . . . . . . . . . . . 1 Self-Inflicted Damage 26 | . . . . . . 18 6 . . . 2 Shots . | . . . . . . . . . . . . Rammed 8 | . . . . . . 6 1 . . . 1 Targets Rammed 8 | . . . . . . 6 1 . . . 1 Kicked . | . . . . . . . . . . . . Crushed . | . . . . . . . . . . . . Highest Temperature 534 | . 194 534 . 129 198 230 153 . . 113 169 Average Temperature 117 | . 87 244 . 65 84 106 79 . . 73 38 Received Heat Transfer 652 | . 18 51 . . 9 270 . . 72 . 232 Effects 5 | . . 5 . . . . . . . . . Matter Decay 1 | . . 1 . . . . . . . . . Damage (minor) 1 | . . 1 . . . . . . . . . Damage (major) 3 | . . 3 . . . . . . . . . Siege Activations . | . . . . . . . . . . . . Robots Corrupted . | . . . . . . . . . . . . Combat Hostiles . | . . . . . . . . . . . . Parts Fried . | . . . . . . . . . . . . Impact Corruptions 2 | . . . . . . . 2 . . . . Robots Melted 1 | . . . . . . 1 . . . . . Combat Hostiles 1 | . . . . . . 1 . . . . . Parts Melted 2 | . . 1 . . . 1 . . . . . Heat Transferred 1556 | . 444 370 . . 298 444 . . . . . Parts Sabotaged . | . . . . . . . . . . . . Parts Stolen . | . . . . . . . . . . . . Parts Stripped . | . . . . . . . . . . . . Power Chain Reactions . | . . . . . . . . . . . . Alert | -11 -10 -9 -9 -7 -6 -6 -6 -6 -5 -5 -5 ------- Run | Yrd Mat Mat Min Zio Pro Fac Low Low Fac Was Fac Peak Influence 172 | . 120 128 41 . . 172 . . 38 4 32 Initial 43 | . . 43 41 . . . . . 23 4 . Average 38 | . 47 63 41 . . 58 . . 23 1 . Maximum Alert Level . | . . . . . . . . . . . . Low Security (%) 100 | 100 100 100 100 . . 100 . . 100 100 100 Level 1 . | . . . . . . . . . . . . Level 2 . | . . . . . . . . . . . . Level 3 . | . . . . . . . . . . . . Level 4 . | . . . . . . . . . . . . Level 5 . | . . . . . . . . . . . . High Security . | . . . . . . . . . . . . Max Security . | . . . . . . . . . . . . Squads Dispatched 6 | . . . . . . 6 . . . . . Investigation 2 | . . . . . . 2 . . . . . Extermination 1 | . . . . . . 1 . . . . . Reinforcement . | . . . . . . . . . . . . Assault . | . . . . . . . . . . . . Garrison 3 | . . . . . . 3 . . . . . Intercept . | . . . . . . . . . . . . Searches Triggered . | . . . . . . . . . . . . Construction Impeded . | . . . . . . . . . . . . Haulers Reinforced . | . . . . . . . . . . . . Active Scanning Responses . | . . . . . . . . . . . . Cargo Convoy Interrupts . | . . . . . . . . . . . . Stealth | -11 -10 -9 -9 -7 -6 -6 -6 -6 -5 -5 -5 --------- Run | Yrd Mat Mat Min Zio Pro Fac Low Low Fac Was Fac Distress Signals . | . . . . . . . . . . . . Communications Jammed . | . . . . . . . . . . . . Distress Signals . | . . . . . . . . . . . . Times Spotted 56 | . 7 4 . . 8 20 4 . 1 6 6 Peak Tracking Total 6 | . 3 2 . . 4 4 4 . 1 6 5 Tactical Retreats 5 | . . . . . 1 2 1 . . 1 . Traps | -11 -10 -9 -9 -7 -6 -6 -6 -6 -5 -5 -5 ------- Run | Yrd Mat Mat Min Zio Pro Fac Low Low Fac Was Fac Traps Triggered 3 | . . . . . . 1 . . 2 . . Indirectly . | . . . . . . . . . . . . Trap Hack Attempts . | . . . . . . . . . . . . Triggered . | . . . . . . . . . . . . Disarmed . | . . . . . . . . . . . . Reprogrammed . | . . . . . . . . . . . . Reused . | . . . . . . . . . . . . Traps Extracted . | . . . . . . . . . . . . Installed . | . . . . . . . . . . . . Triggered . | . . . . . . . . . . . . Machines | -11 -10 -9 -9 -7 -6 -6 -6 -6 -5 -5 -5 ---------- Run | Yrd Mat Mat Min Zio Pro Fac Low Low Fac Was Fac Machines Disabled 1 | . . . . . . 1 . . . . . Max in Single Turn . | . . . . . . . . . . . . Machines Repaired . | . . . . . . . . . . . . Machines Dismantled . | . . . . . . . . . . . . Machines Sabotaged . | . . . . . . . . . . . . Overloaded Fab Kills . | . . . . . . . . . . . . Hacking | -11 -10 -9 -9 -7 -6 -6 -6 -6 -5 -5 -5 --------- Run | Yrd Mat Mat Min Zio Pro Fac Low Low Fac Was Fac Machines Accessed 4 | . 1 1 . 1 . 1 . . . . . Terminals 3 | . 1 1 . . . 1 . . . . . Fabricators . | . . . . . . . . . . . . Repair Stations . | . . . . . . . . . . . . Recycling Units . | . . . . . . . . . . . . Scanalyzers . | . . . . . . . . . . . . Garrison Access . | . . . . . . . . . . . . Total Hacks 14 | . 3 1 . 8 . 2 . . . . . Successful 10 | . 1 1 . 8 . . . . . . . Failed 4 | . 2 . . . . 2 . . . . . Catastrophic . | . . . . . . . . . . . . Database Lockouts . | . . . . . . . . . . . . Manual 14 | . . . . . . 8 . . . . 6 Terminals 6 | . 3 1 . . . 2 . . . . . Fabricators . | . . . . . . . . . . . . Repair Stations . | . . . . . . . . . . . . Recycling Units . | . . . . . . . . . . . . Scanalyzers . | . . . . . . . . . . . . Garrison Access . | . . . . . . . . . . . . Terminal Hacks 10 | . 1 1 . 8 . . . . . . . Record 1 | . 1 . . . . . . . . . . Part Schematic 8 | . . . . 8 . . . . . . . Zone Layout 1 | . . 1 . . . . . . . . . Fabricator Hacks . | . . . . . . . . . . . . Repair Station Hacks . | . . . . . . . . . . . . Recycling Unit Hacks . | . . . . . . . . . . . . Scanalyzer . | . . . . . . . . . . . . Garrison Access Hacks . | . . . . . . . . . . . . Unauthorized Hacks . | . . . . . . . . . . . . Terminals . | . . . . . . . . . . . . Fabricators . | . . . . . . . . . . . . Repair Stations . | . . . . . . . . . . . . Recycling Units . | . . . . . . . . . . . . Scanalyzers . | . . . . . . . . . . . . Garrison Access . | . . . . . . . . . . . . Data Cores Recovered . | . . . . . . . . . . . . Used . | . . . . . . . . . . . . Hacking Detections 5 | . 1 . . . . 3 . . . . 1 Full Trace Events 2 | . 1 . . . . 1 . . . . . Feedback Events . | . . . . . . . . . . . . Feedback Blocked . | . . . . . . . . . . . . Robot Schematics Acquired 2 | . . . . 2 . . . . . . . Robots Built . | . . . . . . . . . . . . Authchips . | . . . . . . . . . . . . Time . | . . . . . . . . . . . . Total Robot Build Rating . | . . . . . . . . . . . . Part Schematics Acquired 22 | . . . . 22 . . . . . . . Parts Built . | . . . . . . . . . . . . Authchips . | . . . . . . . . . . . . Time . | . . . . . . . . . . . . Total Part Build Rating . | . . . . . . . . . . . . Parts Repaired . | . . . . . . . . . . . . Time . | . . . . . . . . . . . . Parts Recycled . | . . . . . . . . . . . . Recycled Matter . | . . . . . . . . . . . . Retrieved Matter . | . . . . . . . . . . . . Retrieved Components . | . . . . . . . . . . . . Parts Scanalyzed . | . . . . . . . . . . . . Part Schematics Acquired . | . . . . . . . . . . . . Parts Damaged . | . . . . . . . . . . . . Bothacking | -11 -10 -9 -9 -7 -6 -6 -6 -6 -5 -5 -5 ------------ Run | Yrd Mat Mat Min Zio Pro Fac Low Low Fac Was Fac Used RIF Installer . | . . . . . . . . . . . . Robots Hacked . | . . . . . . . . . . . . Non-combat . | . . . . . . . . . . . . Combat . | . . . . . . . . . . . . Robot Hacks Applied . | . . . . . . . . . . . . Relay Couplers Released . | . . . . . . . . . . . . Fabnet Peak Effective % . | . . . . . . . . . . . . Robots Rewired . | . . . . . . . . . . . . Allies Hacked . | . . . . . . . . . . . . Hacks Repelled . | . . . . . . . . . . . . Allies | -11 -10 -9 -9 -7 -6 -6 -6 -6 -5 -5 -5 -------- Run | Yrd Mat Mat Min Zio Pro Fac Low Low Fac Was Fac Total Allies 8 | . . . . 4 . 2 . . . 1 1 Largest Group 4 | . . . . 4 4 2 . . . 1 1 Highest-Rated Group 192 | . . . . 157 157 192 . . . 31 31 Highest-Rated Ally 96 | . . . . 40 40 96 . . . 31 31 Zionite Dispatches 1 | . . . . . . . . . . . 1 Hover Resupply 1 | . . . . . . . . . . . 1 Total Orders . | . . . . . . . . . . . . Ally Attacks 62 | . . . . . 14 40 . . . 8 . Total Damage 2116 | . . . . . 550 1419 . . . 147 . Kills 14 | . . . . . 5 9 . . . . . Allies Corrupted 1 | . . . . . . 1 . . . . . Allies Melted . | . . . . . . . . . . . . Intel | -11 -10 -9 -9 -7 -6 -6 -6 -6 -5 -5 -5 ------- Run | Yrd Mat Mat Min Zio Pro Fac Low Low Fac Was Fac Robot Analysis Total . | . . . . . . . . . . . . Derelict Logs Recovered 4 | . . . . 2 1 . 1 . . . . Drone Launches . | . . . . . . . . . . . . Drone Recoveries . | . . . . . . . . . . . . Exploration | -11 -10 -9 -9 -7 -6 -6 -6 -6 -5 -5 -5 ------------- Run | Yrd Mat Mat Min Zio Pro Fac Low Low Fac Was Fac Turns Passed 5007 | 152 256 225 51 1612 915 914 172 10 267 152 281 Spaces Moved 3662 | 90 131 94 36 1101 582 614 339 19 199 209 248 Core 1223 | 4 . 2 . . . 203 339 19 199 209 248 Treads 2439 | 86 131 92 36 1101 582 411 . . . . . Legs . | . . . . . . . . . . . . Wheels . | . . . . . . . . . . . . Hover . | . . . . . . . . . . . . Flight . | . . . . . . . . . . . . Fastest Speed 50 | 50 160 145 145 145 145 50 50 50 50 50 100 Average Speed 126 | 155 160 151 145 145 152 129 50 50 126 70 100 Slowest Speed 400 | 160 160 400 145 145 153 350 50 50 200 100 300 Overloaded Moves . | . . . . . . . . . . . . Propulsion Burnouts . | . . . . . . . . . . . . Robots Hopped . | . . . . . . . . . . . . Cave-ins Triggered . | . . . . . . . . . . . . Exploration Rate (%) 33 | 8 27 11 16 88 65 19 61 3 6 96 5 Regions Visited 11 Branch Regions 5 Pre-discovered Areas 1 | . . . 1 . . . . . . . . Known Exits Taken 2 | . . . . . 1 . 1 . . . . Unknown Exits Taken 7 | 1 1 1 1 1 . 1 . 1 . . . Scrap Searched 5 | . . . . 3 2 . . . . . . Spaces Dug . | . . . . . . . . . . . . Terrain Destroyed 1 | . . . . . . . . . . . 1 Melee . | . . . . . . . . . . . . Projectile 1 | . . . . . . . . . . . 1 AOE . | . . . . . . . . . . . . Terrain Rammed . | . . . . . . . . . . . . Walls Destroyed . | . . . . . . . . . . . . Machines Disabled . | . . . . . . . . . . . . Actions | -11 -10 -9 -9 -7 -6 -6 -6 -6 -5 -5 -5 --------- Run | Yrd Mat Mat Min Zio Pro Fac Low Low Fac Was Fac Total 3936 | 103 164 170 35 1115 603 695 340 18 212 214 267 Wait 88 | . 4 42 . 7 3 29 . . . . 3 Move 3652 | 89 130 93 35 1100 581 613 338 18 199 208 248 Hop . | . . . . . . . . . . . . Pick Up 49 | 8 6 10 . 2 4 10 . . 6 2 1 Fast Attach . | . . . . . . . . . . . . Attach 47 | 6 6 11 . 1 3 12 . . 4 3 1 Detach 1 | . . . . . 1 . . . . . . Swap 3 | . . . . 1 2 . . . . . . Drop 21 | . 5 9 . 3 3 . . . . 1 . Fire 63 | . 13 5 . 1 6 25 . . . . 13 Melee . | . . . . . . . . . . . . Ram 8 | . . . . . . 6 1 . . . 1 Kick . | . . . . . . . . . . . . Crush . | . . . . . . . . . . . . Escape Stasis . | . . . . . . . . . . . . Rewire 1 | . . . . . . . 1 . . . . Trap . | . . . . . . . . . . . . Miscellaneous 3 | . . . . . . . . . 3 . . Route ------- -11/Scrapyard -10/Materials (discovered 2 exits: *Mat / [*Min]) -9/Materials -9/Mines (discovered 2 exits: [*Mat] / *Zio) -7/Zion -6/Proximity Caves -6/Factory (discovered 2 exits: [*Low x2]) -6/Lower Caves -6/Lower Caves -5/Factory -5/Waste -5/Factory (discovered 1 exit: [*Fac]) History --------- Turn | Location | Event 39 | -11/Scrapyard | Discovered new exit (range 16) 153 | -11/Scrapyard | Entered Materials 218 | -10/Materials | Discovered new exit (range 16) 302 | -10/Materials | Build established: Mutant 365 | -10/Materials | Discovered new exit (range 10) 409 | -10/Materials | Entered another Materials area 409 | -9/Materials | Evolved 2 slots: Propulsion x1, Weapon x1 582 | -9/Materials | Discovered new exit (range 8) 634 | -9/Materials | Entered Mines 635 | -9/Mines | Learned location of Storage (-7) 674 | -9/Mines | Discovered new exit (range 5) 675 | -9/Mines | A Derelict revealed a hidden shortcut to a safe place 685 | -9/Mines | Entered Zion 717 | -7/Zion | Build established: Tank 1152 | -7/Zion | Imprinted 1154 | -7/Zion | Declared Zion's savior 1341 | -7/Zion | Learned location of 1 exit from Lower Caves 1571 | -7/Zion | Learned location of 1 exit from Proximity Caves 2146 | -7/Zion | Given A8's code to call for help 2211 | -7/Zion | Discovered new exit (range 16) 2297 | -7/Zion | Entered Proximity Caves 2297 | -6/Proximity Caves | Accompanied by 4 allies 2298 | -6/Proximity Caves | Identified exit to Factory 2393 | -6/Proximity Caves | Build established: Mutant 2420 | -6/Proximity Caves | Lost 3 allies 2974 | -6/Proximity Caves | Spotted B-75 Beast 3078 | -6/Proximity Caves | Build established: Hacker-Mutant 3212 | -6/Proximity Caves | Entered Factory 3212 | -6/Factory | Evolved 6 slots: Power x1, Propulsion x2, Utility x3 3286 | -6/Factory | Garrison activated, responded to threat 3487 | -6/Factory | Lost 9 parts (1p4n1u3w) 3529 | -6/Factory | Enhanced Grunt warped into view, answering call for help 3537 | -6/Factory | Enhanced Grunt warped into view, answering call for help 3560 | -6/Factory | Discovered new exit (range 16) 3946 | -6/Factory | Build established: Skirmisher 3966 | -6/Factory | Spotted B-75 Beast 4029 | -6/Factory | Lost 3 parts (1n2w) 4123 | -6/Factory | Discovered new exit (range 5) 4126 | -6/Factory | Entered Lower Caves 4127 | -6/Lower Caves | Identified exit to Lower Caves 4129 | -6/Lower Caves | Core integrity fell below 50% 4161 | -6/Lower Caves | Encountered a Warlord checkpoint 4165 | -6/Lower Caves | Learned Factory terminal intel 4298 | -6/Lower Caves | Entered another Lower Caves area 4301 | -6/Lower Caves | Discovered new exit (range 14) 4308 | -6/Lower Caves | Entered Factory 4308 | -5/Factory | Evolved 2 slots: Utility x2 4309 | -5/Factory | Identified exit to Extension 4310 | -5/Factory | Loaded intel: 27 terminal locations 4498 | -5/Factory | Spotted B-75 Beast 4575 | -5/Factory | Sucked down chute 4575 | -5/Factory | Entered Waste 4576 | -5/Waste | Met a frightened Derelict 4590 | -5/Waste | EMP discharged 4596 | -5/Waste | Spotted C-40 Crusher 4597 | -5/Waste | Found Corrupted Fusion Bomb Launcher 4618 | -5/Waste | Spotted C-40 Crusher 4655 | -5/Waste | Crushed by Compactor (1 part destroyed, 1 dropped) 4676 | -5/Waste | Spotted C-40 Crusher 4681 | -5/Waste | Crushed by Compactor (1 part destroyed) 4683 | -5/Waste | Spotted C-40 Crusher 4688 | -5/Waste | Spotted C-40 Crusher 4690 | -5/Waste | EMP discharged 4690 | -5/Waste | System corruption reached 10% 4692 | -5/Waste | Spotted C-40 Crusher 4714 | -5/Waste | Discovered new exit (range 11) 4727 | -5/Waste | Entered Factory 4767 | -5/Factory | Zion Hover Resupply teleported in 4781 | -5/Factory | Build established: Mutant 4814 | -5/Factory | Discovered new exit (range 6) 4976 | -5/Factory | Core integrity fell below 50% 4998 | -5/Factory | Core integrity fell below 20% 5008 | -5/Factory | Destroyed by H-66 Slayer with Heavy Assault Rifle Last Messages --------------- Power Amplifier destroyed. Critical hit (Burn: +50). Penetrated by Slug. G-50 Soldier Hvy. Laser blasted off. Acquired 2 matter. G-50 Soldier knocked back. Penetrated by Slug. Slug penetrates Terminal. Penetrated by Slug. Use the buttons at the bottom right of the parts list, or press c/e/w/q, to visualize various stats related to parts and inventory items. Slug penetrates Wall. Penetrated by Slug. Neutrino Core destroyed. Penetrated by Slug. G-67 Veteran destroyed. System corrupted: Matter fused (-5). Penetrated by Slug. [Achievement: 5k Club] Map ----- +----------------------------------------------------+ | ?????????????????????????????????????????????????? | | ?????????????????????????????????????????????????? | | ?????????????????????????????????????????????????? | | ?????????????????????????????????????????????????? | | ?????????????????????????????????????????????????? | | ?????????????????????????????????????????????????? | | ?????????????????????????????????????????????????? | | ?????????????????????????????????????????????????? | | ?????????????????????????????????????????????????? | | ?????????????????????????????????????????????????? | | ?????????????????????????????????????????????????? | | ?????????????????????????????????????????????????? | | ?????????????????????????????????????????????????? | | ?????????????????????????????????????????????????? | | ?????????????????????????????????????????????????? | | ???????????????????????????????+?????????????????? | | ?????????????????????????????? #?????????????????? | | ??????????????????????######## #?????????????????? | | ?????????????????????? +?????????????????? | | ??????????????????????? #?????????????????? | | ??????????????????????? "" #?????????????????? | | ???????????????????????# """ #?????????????????? | | ???????????????????????# T" #?????????????????? | | ???????????????????????# """ #?????????????????? | | ???????????????????????# "" #?????????????????? | | ?????????###########+??#!@ #?????????????????? | | ?????????# # #=[ #?????????????????? | | ######???# T # g%%= #?????????????????? | | #???# # """%#hh% #?????????????????? | | #???#[ # """ # % #?????????????????? | | "" #???# # """ + +?????????????????? | | "" #???# # # ##;## #?????????????????? | | "" ########+########## #?##? #?????????????????? | | #?????#?????????????????? | | "" ########+##+###### #???????????????????????? | | "" ""#????# # #???????????????????????? | | "" F"#????# + #???????""??????????????? | | "#????# ## #????? """??????????????? | | "" ""#????# ## ##?? """ #????????????? | | "" ###????#######+### # !! #????????????? | | "" + !! #????????????? | | ??????########### # !! ! #????????????? | | ??????????########"##?? #????????????? | | ## ??????????# #????## ###????????????? | | ?# ?????????# """" #??????????????????????? | | ?# ?????????# ""S"" #??????????????????????? | | ?# ?????????# "" "" #??????????????????????? | | ?# ?????????# #??????????????????????? | | ?# ?????????# #??????????????????????? | | ?######?????????# #??????????????????????? | +----------------------------------------------------+ Best States ------------- Heat Dissipation 66 Energy Generation 34 Energy Capacity 315 Matter Stores 300 Matter Capacity 300 Sight Range 16 Terrain Scan Range 20 Terrain Scan Density 210 Power Amplification 20 Armor Coverage 150 Resistance: KI 20 Resistance: TH 20 Resistance: EX 20 Resistance: EM 20 Resistance: I 20 Resistance: S 20 Resistance: P 20 Evasion (%) 50 Recoil Reduction 4 Offensive Hacking 20 Item Schematics ----------------- Beamcaster | -7/Zion | Free Riot Gun | -7/Zion | Free Battle Rifle | -7/Zion | Free Barrage Gun | -7/Zion | Free Battle Cannon | -7/Zion | Free Flamer | -7/Zion | Free Slug Cannon | -7/Zion | Free Ripper | -7/Zion | Free Transmission Jammer | -7/Zion | Archive Mak. Hacking Suite | -7/Zion | Archive Mak. Hover Unit | -7/Zion | Archive Plasma Cannon | -7/Zion | Archive EM Disruption Field | -7/Zion | Archive Imp. Carbon-fiber Leg | -7/Zion | Archive Phasing Sabre | -7/Zion | Archive Adv. Field Recycling Unit | -7/Zion | Archive Microactuators | -7/Zion | Archive Power Amplifier | -7/Zion | Archive Imp. Particle Charger | -7/Zion | Archive Mak. System Shield | -7/Zion | Archive Hvy. Laser | -7/Zion | Archive Coil Gun | -7/Zion | Archive Robot Schematics ------------------ S-27 Virus | -7/Zion | Archive L-31 Rogue | -7/Zion | Archive Fabricated ------------ Nothing Alien Tech Used ----------------- None Achievements -------------- 5k Club Help From High Places I'm Back, Baby! It's Just You Made in Tau Ceti IV Omniscient Cartographer One Hack Too Far Risk Taker Robot Respite System Compromised The One Tourist Challenges ------------ None Game ------ Seed ArmageddonHybridRigger Manual? 0 Play Time 01:01:16 Cumulative 1.6 hours Start 2024.04.02 @ 12:40:49 End 2024.04.02 @ 14:58:20 Sessions 7 Manual Loads 0 Difficulty Adventurer Special Mode None Game No. 1 Rogue 0 Adventurer 1 Explorer 0 Win Type - Total 0 Types 0/0/0/0/0/0/0/0/0 Lore% 1 Gallery% 6 Achievement% 7 Wizard Run 0 Options --------- Layout 1 ASCII 0 Keyboard 0 Movement Mouse Keybinds 0 Fullscreen 2 Font 24/Smallcaps Map View 50x35 Zoom Use 0% Tactical HUD 0 Map Filters NONE Filters NONE Steam 1 RUN: 114c9d34-0623-47cf-95eb-753e86c3e222